bitfinex/quotes_BTCUSD_20251031
["timestamp","ask_amount","ask_price","bid_price","bid_amount"]
[1761930377528,3.12317225,109160.0,109150.0,0.00022395]
[1761930377955,3.12417225,109160.0,109150.0,0.00022395]
[1761930378163,3.12817225,109160.0,109150.0,0.00022395]
[1761930379040,3.12317225,109160.0,109150.0,0.00022395]
[1761930379279,3.13317225,109160.0,109150.0,0.00022395]
[1761930379524,3.13517225,109160.0,109150.0,0.00022395]
[1761930379742,3.12517226,109160.0,109150.0,0.00022395]
[1761930379963,3.13517225,109160.0,109150.0,0.00022395]
[1761930380389,3.12517226,109160.0,109150.0,0.00022395]
[1761930380614,3.11517226,109160.0,109150.0,0.00022395]
[1761930380828,3.13017225,109160.0,109150.0,0.00022395]
[1761930381266,3.12017226,109160.0,109150.0,0.00022395]
[1761930381500,3.36327226,109160.0,109150.0,0.00022395]
[1761930381734,3.37327225,109160.0,109150.0,0.00022395]
[1761930381948,3.37764758,109160.0,109150.0,0.00022395]
[1761930382242,3.13954757,109160.0,109150.0,0.00022395]
[1761930382464,3.16832935,109160.0,109150.0,0.00022395]
[1761930382680,3.16632935,109160.0,109150.0,0.00022395]
[1761930383107,3.16732935,109160.0,109150.0,0.00022395]
[1761930383327,3.16632935,109160.0,109150.0,0.00022395]
[1761930383562,3.1827093,109160.0,109150.0,0.00022395]
[1761930383776,3.1816648,109160.0,109150.0,0.00022395]
[1761930383992,3.17166481,109160.0,109150.0,0.00022395]
[1761930384209,3.15928486,109160.0,109150.0,0.00022395]
[1761930384631,2.98084931,109160.0,109150.0,0.00022395]
[1761930384904,2.98584931,109160.0,109150.0,0.00022395]
[1761930385127,3.1690666,109160.0,109150.0,0.00022395]
[1761930385345,3.1620666,109160.0,109150.0,0.00022395]
[1761930385557,2.97684931,109160.0,109150.0,0.00022395]
[1761930385785,2.97884931,109160.0,109150.0,0.00022395]
[1761930386030,2.98084931,109160.0,109150.0,0.00022395]
[1761930386241,2.96206758,109160.0,109150.0,0.00022395]
[1761930386458,2.97784012,109160.0,109150.0,0.00022395]
[1761930387115,3.16305741,109160.0,109150.0,0.00022395]
[1761930387361,3.22521775,109160.0,109150.0,0.00022395]
[1761930387581,3.2251957,109160.0,109150.0,0.00022395]
[1761930388412,3.2271957,109160.0,109150.0,0.00022395]
[1761930388677,3.19841392,109160.0,109150.0,0.00022395]
[1761930388826,3.19741392,109160.0,109150.0,0.00022395]
[1761930389056,3.19641392,109160.0,109150.0,0.00022395]
[1761930389275,3.19141393,109160.0,109150.0,0.00022395]
[1761930389504,3.20341392,109160.0,109150.0,0.00022395]
[1761930389726,3.19341393,109160.0,109150.0,0.00022395]
[1761930390385,2.99819665,109160.0,109150.0,0.00022395]
[1761930390607,2.89400232,109160.0,109150.0,0.00022395]
[1761930390815,0.04909381,109160.0,109150.0,0.00022395]
[1761930391044,0.2297534,109160.0,109150.0,0.00022395]
[1761930391251,0.06285561,109160.0,109150.0,0.00022395]
[1761930391468,0.03953611,109160.0,109150.0,0.00022395]
[1761930391671,0.05010163,109160.0,109150.0,0.00122395]
[1761930391871,3.25207927,109160.0,109150.0,0.00122395]
[1761930392074,3.26939877,109160.0,109150.0,0.00122395]
[1761930392275,3.27139877,109160.0,109150.0,0.00122395]
[1761930392522,3.08818148,109160.0,109150.0,0.00122395]
[1761930392677,3.26939877,109160.0,109150.0,0.00122395]
[1761930393091,3.27139877,109160.0,109150.0,0.00122395]
[1761930393291,3.26939877,109160.0,109150.0,0.00122395]
[1761930393515,3.27139877,109160.0,109150.0,0.00122395]
[1761930393751,3.28377301,109160.0,109150.0,0.00122395]
[1761930393949,3.28577301,109160.0,109150.0,0.00122395]
[1761930394556,3.10255572,109160.0,109150.0,0.00122395]
[1761930394798,3.10055572,109160.0,109150.0,0.00122395]
[1761930395003,3.28377301,109160.0,109150.0,0.00122395]
[1761930395257,3.28577301,109160.0,109150.0,0.00122395]
[1761930395459,3.10255572,109160.0,109150.0,0.00122395]
[1761930395663,3.28577301,109160.0,109150.0,0.00122395]
[1761930395885,3.10255572,109160.0,109150.0,0.00122395]
[1761930396095,3.10055572,109160.0,109150.0,0.00122395]
[1761930396342,3.28577301,109160.0,109150.0,0.00122395]
[1761930396560,3.28377301,109160.0,109150.0,0.00122395]
[1761930396779,3.28577301,109160.0,109150.0,0.00122395]
[1761930397006,3.30577299,109160.0,109150.0,0.00122395]
[1761930397208,3.30056521,109160.0,109150.0,0.00122395]
[1761930397862,3.27618664,109160.0,109150.0,0.00022395]
[1761930398298,3.28018664,109160.0,109150.0,0.00022395]
[1761930398502,3.09796935,109160.0,109150.0,0.00022395]
[1761930398701,3.28118664,109160.0,109150.0,0.00022395]
[1761930398934,3.28018664,109160.0,109150.0,0.00022395]
[1761930399682,3.27618664,109160.0,109150.0,0.00022395]
[1761930399891,3.28618663,109160.0,109150.0,0.00022395]
[1761930400095,3.39145211,109160.0,109150.0,0.00022395]
[1761930400325,0.18329192,109120.0,109100.0,0.02637227]
[1761930400540,3.18530125,109110.0,109100.0,0.02637227]
[1761930400755,3.20262075,109110.0,109100.0,0.02637227]
[1761930400957,3.20462075,109110.0,109100.0,0.02637227]
[1761930401596,3.0193195,109110.0,109100.0,0.02685643]
[1761930402201,3.20462075,109110.0,109100.0,0.02685643]
[1761930402401,3.10913851,109110.0,109100.0,0.02685643]
[1761930402710,3.29443976,109110.0,109100.0,0.02685643]
[1761930402917,3.11113851,109110.0,109100.0,0.02985643]
[1761930403119,3.10913851,109110.0,109100.0,0.02985643]
[1761930403322,3.03073264,109110.0,109100.0,0.02985643]
[1761930403816,0.04511161,109110.0,109100.0,0.07280643]
[1761930404035,0.02579211,109110.0,109100.0,0.07280643]
[1761930404243,0.01437897,109110.0,109100.0,0.32573448]
[1761930404641,0.01437897,109110.0,109100.0,0.25612448]
[1761930404847,0.01437897,109110.0,109100.0,0.07280643]
[1761930405095,0.01437897,109110.0,109100.0,0.14241643]
[1761930405477,0.01437897,109110.0,109100.0,0.14441643]
[1761930405685,0.01437897,109110.0,109100.0,0.14141643]
[1761930405882,0.01437897,109110.0,109100.0,0.14941643]
[1761930406095,0.01437897,109110.0,109100.0,0.08092674]
[1761930406709,0.01437897,109110.0,109100.0,0.32662479]
[1761930408325,0.01437897,109110.0,109100.0,0.19369842]
[1761930408534,0.01437897,109110.0,109100.0,0.37701647]
[1761930409185,0.01437897,109110.0,109100.0,0.19369842]
[1761930409377,0.01437897,109110.0,109100.0,0.37701647]
[1761930409809,0.01437897,109110.0,109100.0,0.19369842]
[1761930410019,0.01437897,109110.0,109100.0,0.14330674]
[1761930410248,0.01437897,109110.0,109100.0,0.32662479]
[1761930410884,0.0113411,109130.0,109110.0,0.18329137]
[1761930411106,0.02528407,109130.0,109120.0,0.075]
[1761930411741,0.02528407,109130.0,109120.0,0.13738]
[1761930411970,3.08157424,109130.0,109100.0,0.02685643]
[1761930412194,3.0,109120.0,109110.0,0.004]
[1761930412427,0.04460357,109120.0,109110.0,0.005]
[1761930412636,0.03617555,109120.0,109110.0,0.001]
[1761930412869,0.25034466,109120.0,109110.0,0.001]
[1761930413341,0.06506021,109120.0,109110.0,0.001]
[1761930413584,0.03617555,109120.0,109110.0,0.001]
[1761930413818,0.03617555,109120.0,109110.0,0.32068125]
[1761930413819,0.02529286,109120.0,109110.0,0.32068125]
[1761930414037,0.00843681,109120.0,109110.0,0.32068125]
[1761930414301,0.00843681,109120.0,109110.0,0.13738]
[1761930414511,0.00843681,109120.0,109110.0,0.32068125]
[1761930414713,0.00843681,109120.0,109110.0,0.32468125]
[1761930414714,0.02531187,109120.0,109110.0,0.32468125]
[1761930414918,0.08380321,109150.0,109120.0,0.19244867]
[1761930415145,0.05900614,109150.0,109140.0,0.04344]
[1761930415362,0.07155513,109150.0,109140.0,0.04344]
[1761930415816,0.0826684,109150.0,109140.0,0.04344]
[1761930416234,0.0836684,109150.0,109140.0,0.00048416]
[1761930417100,0.0866684,109150.0,109140.0,0.00048416]
[1761930417314,0.13706008,109150.0,109140.0,0.00048416]
[1761930417530,3.13406008,109150.0,109140.0,0.00048416]
[1761930417747,3.13306008,109150.0,109140.0,0.00148416]
[1761930417952,3.12051109,109150.0,109140.0,0.00148416]
[1761930418155,0.12051109,109150.0,109140.0,0.00148416]
[1761930418360,0.12251109,109150.0,109140.0,0.00148416]
[1761930418572,0.12051109,109150.0,109140.0,0.00048416]
[1761930419918,0.12051109,109150.0,109140.0,0.04392416]
[1761930420129,0.10119159,109150.0,109140.0,0.04392416]
[1761930420334,0.05079991,109150.0,109140.0,0.28955503]
[1761930420580,0.03968664,109150.0,109140.0,0.28955503]
[1761930421022,0.03968664,109150.0,109140.0,0.29455503]
[1761930421227,0.03968664,109150.0,109140.0,0.11030416]
[1761930421437,0.03968664,109150.0,109140.0,0.04892416]
[1761930421651,0.03968664,109150.0,109140.0,0.04914814]
[1761930421878,0.03656499,109150.0,109140.0,0.04914814]
[1761930422082,0.0424656,109150.0,109140.0,0.00570814]
[1761930422940,0.03656499,109150.0,109140.0,0.00570814]
[1761930423224,0.02531193,109150.0,109140.0,0.04914814]
[1761930423427,0.02531193,109150.0,109140.0,0.29477901]
[1761930423847,0.02531193,109150.0,109140.0,0.11152814]
[1761930424057,0.02531193,109150.0,109140.0,0.29477901]
[1761930424525,0.02531193,109150.0,109140.0,0.83735497]
[1761930424743,0.00843731,109150.0,109140.0,0.83735497]
[1761930424969,0.08380321,109180.0,109160.0,0.18320556]
[1761930425170,0.0253032,109180.0,109170.0,0.075]
[1761930425377,0.0253032,109180.0,109170.0,0.13738]
[1761930425794,0.0253032,109180.0,109170.0,0.075]
[1761930425994,0.0253032,109180.0,109170.0,0.03156]
[1761930426202,0.0253032,109180.0,109170.0,0.075]
[1761930426403,0.0253032,109180.0,109170.0,0.13738]
[1761930427084,0.0253032,109180.0,109170.0,0.13838]
[1761930428163,0.0253032,109180.0,109170.0,0.32158051]
[1761930428361,0.0253032,109180.0,109170.0,0.81376479]
[1761930428801,0.0084344,109180.0,109170.0,0.81376479]
[1761930429468,0.0084344,109180.0,109170.0,0.81276479]
[1761930429673,0.0017282,109210.0,109200.0,0.18315018]
[1761930429902,0.01857112,109210.0,109200.0,0.71877446]
[1761930430120,0.01857112,109210.0,109200.0,0.78115446]
[1761930430859,0.018716,109210.0,109200.0,0.78115446]
[1761930431087,0.018716,109210.0,109200.0,0.78315446]
[1761930431300,0.018716,109210.0,109200.0,0.04344]
[1761930431513,0.01869997,109210.0,109200.0,0.10582]
[1761930431737,0.01869997,109210.0,109200.0,0.05044]
[1761930431981,0.01869997,109210.0,109200.0,0.11282]
[1761930432191,0.01869997,109210.0,109200.0,0.29597018]
[1761930432404,0.03306445,109210.0,109200.0,0.34636186]
[1761930432612,0.03306445,109210.0,109200.0,0.84054614]
[1761930432827,0.03306445,109210.0,109200.0,0.34636186]
[1761930433029,0.01869997,109210.0,109200.0,0.33936186]
[1761930433240,0.01869997,109210.0,109200.0,0.83354614]
[1761930433436,0.01869997,109210.0,109200.0,0.83654614]
[1761930433645,0.00187308,109210.0,109200.0,0.83654614]
[1761930433849,0.00187308,109210.0,109200.0,0.83154614]
[1761930434058,0.00187308,109210.0,109200.0,0.83354614]
[1761930434266,0.00187308,109210.0,109200.0,0.84054614]
[1761930434615,0.00187308,109210.0,109200.0,0.83354614]
[1761930435040,0.00187308,109210.0,109200.0,0.84254614]
[1761930435671,0.00187308,109210.0,109200.0,0.84054614]
[1761930435882,0.00187308,109210.0,109200.0,1.33573042]
[1761930437056,3.0,109260.0,109210.0,0.27721984]
[1761930437270,3.0,109250.0,109240.0,0.04213]
[1761930437472,0.01681004,109250.0,109240.0,0.04213]
[1761930437586,0.02819301,109250.0,109240.0,0.13624]
[1761930438011,0.02819301,109250.0,109240.0,0.86643484]
[1761930438216,0.01681004,109250.0,109240.0,0.86643484]
[1761930438477,0.01680025,109250.0,109240.0,0.37425056]
[1761930438694,0.01680025,109250.0,109240.0,0.86643484]
[1761930438924,0.01684861,109260.0,109240.0,0.86643484]
[1761930439128,0.01684861,109260.0,109250.0,0.28474636]
[1761930440180,0.02184861,109260.0,109250.0,0.10168]
[1761930440610,0.01684861,109260.0,109250.0,0.10168]
[1761930441005,0.01684861,109260.0,109250.0,0.10368]
[1761930441463,0.01684861,109260.0,109250.0,0.28674636]
[1761930441894,0.02524464,109260.0,109250.0,0.28774636]
[1761930442120,0.02524464,109260.0,109250.0,0.31720636]
[1761930442372,0.01435736,109280.0,109270.0,0.18303285]
[1761930442594,0.00048344,109280.0,109270.0,0.06937]
[1761930443500,0.01438344,109280.0,109270.0,0.02946]
[1761930443710,0.01738344,109280.0,109270.0,0.02946]
[1761930443933,0.01738344,109280.0,109260.0,0.06177]
[1761930444140,0.00048344,109280.0,109270.0,0.03991]
[1761930445513,0.00048344,109280.0,109270.0,0.10168]
[1761930445730,0.00048344,109280.0,109270.0,0.30301613]
[1761930446025,0.00248344,109280.0,109270.0,0.10168]
[1761930446217,0.00248344,109280.0,109270.0,0.03991]
[1761930446461,0.00048344,109280.0,109270.0,0.03991]
[1761930446907,0.01438344,109280.0,109260.0,0.06177]
[1761930447354,0.00048344,109280.0,109270.0,0.03991]
[1761930447614,0.00248344,109280.0,109270.0,0.10168]
[1761930448053,0.00404874,109280.0,109270.0,0.10268]
[1761930448531,0.00404874,109280.0,109270.0,0.10168]
[1761930448737,0.00204874,109280.0,109270.0,0.10168]
[1761930448955,0.00304874,109280.0,109270.0,0.13114]
[1761930449396,0.00304874,109280.0,109270.0,0.13214]
[1761930450087,0.00204874,109280.0,109270.0,0.13214]
[1761930450302,0.00204874,109280.0,109270.0,0.13314]
[1761930450514,0.01594874,109280.0,109270.0,0.03146]
[1761930450733,0.01594874,109280.0,109270.0,0.002]
[1761930451210,0.05224903,109280.0,109270.0,0.002]
[1761930451392,0.01594874,109280.0,109270.0,0.002]
[1761930451649,4.09969279,109300.0,109270.0,0.002]
[1761930451867,3.0,109280.0,109270.0,0.001]
[1761930452078,3.001,109280.0,109250.0,0.58341428]
[1761930452291,0.001,109280.0,109270.0,0.03991]
[1761930452566,0.001,109280.0,109260.0,0.06177]
[1761930452786,3.0,109280.0,109260.0,0.06177]
[1761930453011,3.0,109290.0,109270.0,0.03991]
[1761930453264,3.0,109290.0,109280.0,0.59386428]
[1761930453495,3.88936812,109300.0,109280.0,0.10168]
[1761930453715,3.88936812,109300.0,109280.0,0.10068]
[1761930454139,3.88836812,109300.0,109280.0,0.10068]
[1761930454789,3.88836812,109300.0,109290.0,0.03991]
[1761930455026,0.001,109290.0,109260.0,0.06177]
[1761930455259,0.001,109290.0,109270.0,0.06177]
[1761930455694,4.07135114,109300.0,109270.0,0.06177]
[1761930455916,3.88936812,109300.0,109280.0,0.03991]
[1761930456136,3.90372229,109300.0,109280.0,0.03991]
[1761930456362,3.90272229,109300.0,109280.0,0.03991]
[1761930456584,3.90272229,109300.0,109280.0,0.06177]
[1761930456799,3.90272229,109300.0,109290.0,0.03991]
[1761930457237,3.90272229,109300.0,109290.0,0.06937]
[1761930457935,3.90372229,109300.0,109280.0,0.02946]
[1761930458154,3.90472229,109300.0,109280.0,0.02946]
[1761930458380,3.90472229,109300.0,109280.0,0.09123]
[1761930458602,3.90372229,109300.0,109280.0,0.09123]
[1761930459130,3.90472229,109300.0,109280.0,0.09123]
[1761930459619,3.90372229,109300.0,109280.0,0.09123]
[1761930459858,3.90472229,109300.0,109280.0,0.09123]
[1761930460543,3.90372229,109300.0,109290.0,0.03991]
[1761930460982,3.90372229,109300.0,109290.0,0.10168]
[1761930461416,3.90272229,109300.0,109290.0,0.10168]
[1761930461847,3.90372229,109300.0,109290.0,0.10168]
[1761930462254,3.91210901,109300.0,109290.0,0.10168]
[1761930462482,3.90372229,109300.0,109290.0,0.10168]
[1761930463149,3.90416929,109300.0,109290.0,0.10168]
[1761930463587,3.88981512,109300.0,109290.0,0.10168]
[1761930463809,3.87889763,109300.0,109290.0,0.28467935]
[1761930464045,3.87789763,109300.0,109290.0,0.77686363]
[1761930464262,3.87789763,109300.0,109290.0,0.77786363]
[1761930464474,3.87789763,109300.0,109290.0,0.77886363]
[1761930464697,3.87789763,109300.0,109290.0,0.28567935]
[1761930465500,3.87789763,109300.0,109290.0,0.10168]
[1761930465590,3.87789763,109300.0,109290.0,0.28967935]
[1761930467277,3.88630393,109300.0,109290.0,0.28967935]
[1761930468428,3.88630393,109300.0,109290.0,0.10668]
[1761930468655,3.88630393,109300.0,109290.0,0.28967935]
[1761930469346,3.88630393,109300.0,109290.0,0.10651]
[1761930469555,3.88630393,109300.0,109290.0,0.78169363]
[1761930470640,3.88630393,109300.0,109290.0,0.28950935]
[1761930471058,3.88630393,109300.0,109290.0,0.78169363]
[1761930472564,3.88630393,109300.0,109290.0,0.28950935]
[1761930473031,3.88630393,109300.0,109290.0,0.78169363]
[1761930476158,3.88635651,109300.0,109290.0,0.78169363]
[1761930476581,3.88635377,109300.0,109290.0,0.28950935]
[1761930476789,3.88635377,109300.0,109290.0,0.78169363]
[1761930477460,3.88635377,109300.0,109290.0,0.28950935]
[1761930477676,3.88635377,109300.0,109290.0,0.78169363]
[1761930477897,3.67788859,109300.0,109290.0,0.28950935]
[1761930478761,3.67788859,109300.0,109290.0,0.10651]
[1761930478979,3.67788859,109300.0,109290.0,0.28950935]
[1761930479419,3.67788859,109300.0,109290.0,0.78169363]
[1761930479632,3.66943245,109300.0,109290.0,0.78169363]
[1761930479853,3.6153232,109300.0,109290.0,0.28950935]
[1761930480063,3.6153232,109300.0,109290.0,0.10651]
[1761930480514,3.6153232,109300.0,109290.0,0.28950935]
[1761930480791,3.6153232,109300.0,109290.0,0.10651]
[1761930481008,3.6153232,109300.0,109290.0,0.28950935]
[1761930482094,3.6153232,109300.0,109290.0,0.04474]
[1761930482095,3.6534532,109300.0,109290.0,0.04474]
[1761930482813,3.6534532,109300.0,109290.0,0.04374]
[1761930483036,3.6534532,109300.0,109290.0,0.03974]
[1761930483303,3.6153232,109300.0,109290.0,0.28663935]
[1761930483535,3.6153232,109300.0,109290.0,0.34612231]
[1761930485094,3.60687245,109300.0,109290.0,1.10556539]
[1761930486014,3.60687245,109300.0,109290.0,1.10356539]
[1761930486228,3.60687245,109300.0,109290.0,1.10656539]
[1761930486435,3.60687245,109300.0,109290.0,1.11456539]
[1761930487380,3.60687245,109300.0,109290.0,1.12456538]
[1761930487606,2.43793241,109300.0,109290.0,4.12456538]
[1761930487836,2.2254641,109300.0,109290.0,4.12456538]
[1761930488055,2.18911221,109300.0,109290.0,4.12456538]
[1761930488517,2.18911221,109300.0,109290.0,4.11656538]
[1761930488982,2.18911221,109300.0,109290.0,4.12556538]
[1761930489197,2.18911221,109300.0,109290.0,1.11556539]
[1761930489410,2.18911221,109300.0,109290.0,1.12956538]
[1761930489656,2.18911221,109300.0,109290.0,4.12956538]
[1761930490094,2.18785074,109300.0,109290.0,4.12956538]
[1761930490787,2.18037273,109300.0,109290.0,4.12956538]
[1761930491227,1.075936,109300.0,109290.0,4.13956537]
[1761930491457,0.0002,109320.0,109310.0,0.18296587]
[1761930491684,0.0002,109320.0,109310.0,1.07290191]
[1761930491902,0.0002,109320.0,109310.0,1.13480191]
[1761930492121,0.00064686,109320.0,109310.0,1.13480191]
[1761930493043,0.00064686,109320.0,109310.0,1.13980191]
[1761930493526,0.00064686,109320.0,109310.0,1.14280191]
[1761930493763,0.00064686,109320.0,109310.0,4.16280189]
[1761930493992,0.0002,109330.0,109310.0,4.11280189]
[1761930494228,0.0002,109330.0,109320.0,4.06416713]
[1761930494450,0.25571605,109400.0,109390.0,0.18283206]
[1761930494451,0.00010251,109400.0,109390.0,0.18283206]
[1761930494701,0.00868152,109400.0,109390.0,0.07101]
[1761930494960,0.00868152,109400.0,109390.0,0.25384206]
[1761930495183,0.00868152,109400.0,109390.0,0.31574206]
[1761930495404,0.00868152,109400.0,109390.0,0.13291]
[1761930495836,0.06816448,109400.0,109390.0,0.07101]
[1761930496071,0.09761296,109400.0,109390.0,0.07101]
[1761930496329,0.15982296,109400.0,109390.0,0.001]
[1761930496582,3.15982296,109400.0,109390.0,0.001]
[1761930496817,0.18285275,109380.0,109350.0,0.03222]
[1761930497056,0.0639883,109360.0,109350.0,0.03222]
[1761930497351,9.87941352,109410.0,109380.0,0.19199121]
[1761930497621,9.87941352,109410.0,109400.0,0.03222]
[1761930497804,0.01807,109400.0,109390.0,0.03222]
[1761930498264,0.08254096,109400.0,109390.0,0.07651]
[1761930498479,3.0,109390.0,109370.0,0.26245028]
[1761930498705,0.12042096,109400.0,109380.0,0.18284878]
[1761930498923,0.06447096,109400.0,109390.0,0.25934206]
[1761930499141,0.06447096,109400.0,109390.0,0.14698]
[1761930499363,0.06447096,109400.0,109390.0,0.07651]
[1761930499587,0.08254096,109400.0,109390.0,0.07651]
[1761930499812,0.08254096,109400.0,109380.0,0.25331878]
[1761930499813,0.18886096,109400.0,109370.0,0.19198028]
[1761930500040,0.12042096,109400.0,109380.0,0.18284848]
[1761930500258,0.12042096,109400.0,109390.0,0.18283206]
[1761930500702,0.00226871,109400.0,109390.0,0.32981206]
[1761930501634,0.00426871,109400.0,109390.0,0.32981206]
[1761930501862,0.00426871,109400.0,109370.0,0.19198028]
[1761930501863,0.06149871,109400.0,109370.0,0.25690028]
[1761930502081,0.06149871,109400.0,109380.0,0.18284878]
[1761930502082,0.0639883,109390.0,109380.0,0.18284878]
[1761930502312,0.0639883,109390.0,109370.0,0.03472]
[1761930502532,0.1314483,109390.0,109370.0,0.03472]
[1761930502758,0.03953,109380.0,109370.0,0.03472]
[1761930502970,0.1314483,109390.0,109370.0,0.03472]
[1761930503187,0.1314483,109390.0,109370.0,0.09964]
[1761930503188,0.0639883,109390.0,109370.0,0.09964]
[1761930503407,0.0639883,109390.0,109380.0,0.001]
[1761930503621,0.0639883,109390.0,109370.0,0.28250494]
[1761930503842,0.0639883,109390.0,109370.0,0.09964]
[1761930504125,0.0639883,109390.0,109370.0,0.10064]
[1761930504329,0.0639883,109390.0,109370.0,0.03472]
[1761930504742,0.0649883,109390.0,109370.0,0.03472]
[1761930504969,0.03953,109380.0,109370.0,0.03472]
[1761930505186,0.03953,109380.0,109350.0,0.22423044]
[1761930505402,0.02996,109360.0,109350.0,0.03222]
[1761930505612,0.0639883,109370.0,109350.0,0.09714]
[1761930505826,0.0939483,109370.0,109350.0,0.09714]
[1761930506258,0.0639883,109360.0,109350.0,0.28003894]
[1761930506731,0.0639883,109360.0,109350.0,0.08064492]
[1761930506952,0.0639883,109360.0,109350.0,0.08214492]
[1761930507169,0.0639883,109360.0,109350.0,0.14706492]
[1761930508052,0.002,109360.0,109350.0,0.14706492]
[1761930508271,0.07871784,109360.0,109350.0,0.14706492]
[1761930508539,0.28675851,109360.0,109350.0,0.00014492]
[1761930508816,3.07771784,109360.0,109350.0,0.00014492]
[1761930509227,3.26160006,109360.0,109350.0,0.00014492]
[1761930509448,3.26060006,109360.0,109350.0,0.00014492]
[1761930509663,3.26160006,109360.0,109350.0,0.00014492]
[1761930509898,3.07771784,109360.0,109350.0,0.00014492]
[1761930510138,3.26660006,109360.0,109350.0,0.00014492]
[1761930510674,3.26560006,109360.0,109350.0,0.00014492]
[1761930510905,3.26660006,109360.0,109350.0,0.00014492]
[1761930511125,3.36976579,109360.0,109350.0,0.00014492]
[1761930511572,3.28094678,109360.0,109350.0,0.00014492]
[1761930512487,3.27994678,109360.0,109350.0,0.00014492]
[1761930512727,3.26560006,109360.0,109350.0,0.00014492]
[1761930512950,3.26660006,109360.0,109350.0,0.00014492]
[1761930513184,3.29409395,109360.0,109350.0,0.00014492]
[1761930513865,3.38380632,109360.0,109350.0,0.00014492]
[1761930514084,3.29398731,109360.0,109350.0,0.00014492]
[1761930514313,3.29498731,109360.0,109350.0,0.00014492]
[1761930514561,3.31393881,109360.0,109350.0,0.00014492]
[1761930514786,3.31393882,109360.0,109350.0,0.00014492]
[1761930515945,3.32828631,109360.0,109350.0,0.00014492]
[1761930516164,3.41810532,109360.0,109350.0,0.00014492]
[1761930516611,3.66120532,109360.0,109350.0,0.00014492]
[1761930517396,3.57038631,109360.0,109350.0,0.00014492]
[1761930517579,3.57138631,109360.0,109350.0,0.00014492]
[1761930518214,3.3382863,109360.0,109350.0,0.00014492]
[1761930519311,3.3332863,109360.0,109350.0,0.00014492]
[1761930519559,3.3392863,109360.0,109350.0,0.00014492]
[1761930519719,3.42910531,109360.0,109350.0,0.00014492]
[1761930519929,3.4391053,109360.0,109350.0,0.00014492]
[1761930520785,3.4331053,109360.0,109350.0,0.00014492]
[1761930521130,3.22100956,109360.0,109350.0,0.00014492]
[1761930521331,3.22300956,109360.0,109350.0,0.00014492]
[1761930523206,3.23736202,109360.0,109350.0,0.00014492]
[1761930523673,3.21300957,109360.0,109350.0,0.00014492]
[1761930523878,3.22300956,109360.0,109350.0,0.00014492]
[1761930524731,3.21300957,109360.0,109350.0,0.00014492]
[1761930524963,3.22300956,109360.0,109350.0,0.00014492]
[1761930525379,3.12319056,109360.0,109350.0,0.00014492]
[1761930525818,3.11519056,109360.0,109350.0,0.00014492]
[1761930526028,3.09584308,109360.0,109350.0,0.00014492]
[1761930526459,3.10124325,109360.0,109350.0,0.00014492]
[1761930526598,3.09124326,109360.0,109350.0,0.00014492]
[1761930526817,3.18106227,109360.0,109350.0,0.00014492]
[1761930527014,3.09124326,109360.0,109350.0,0.00014492]
[1761930527218,3.10124325,109360.0,109350.0,0.00014492]
[1761930527415,3.09124326,109360.0,109350.0,0.00014492]
[1761930527662,3.08924326,109360.0,109350.0,0.00014492]
[1761930528023,3.19006226,109360.0,109350.0,0.00014492]
[1761930528225,3.18006227,109360.0,109350.0,0.00014492]
[1761930528432,3.20599993,109360.0,109350.0,0.00014492]
[1761930528642,3.1989996,109360.0,109350.0,0.00014492]
[1761930528856,3.18006227,109360.0,109350.0,0.00014492]
[1761930529065,3.20441055,109360.0,109350.0,0.00014492]
[1761930529276,3.10459155,109360.0,109350.0,0.00014492]
[1761930529486,2.92070933,109360.0,109350.0,0.00014492]
[1761930529690,2.92170933,109360.0,109350.0,0.00014492]
[1761930530153,3.10459155,109360.0,109350.0,0.00014492]
[1761930530572,2.92170933,109360.0,109350.0,0.00014492]
[1761930530756,3.19441056,109360.0,109350.0,0.00014492]
[1761930531301,3.21336168,109360.0,109350.0,0.00014492]
[1761930531746,3.03047946,109360.0,109350.0,0.00014492]
[1761930531959,3.21336168,109360.0,109350.0,0.00014492]
[1761930533242,3.23336166,109360.0,109350.0,0.00014492]
[1761930533461,3.22336167,109360.0,109350.0,0.00014492]
[1761930533673,5.38304754,109360.0,109350.0,0.00014492]
[1761930535005,5.37304755,109360.0,109350.0,0.00014492]
[1761930535264,5.09934632,109360.0,109350.0,0.00014492]
[1761930535490,5.07185243,109360.0,109350.0,0.00014492]
[1761930535683,5.05750074,109360.0,109350.0,0.00014492]
[1761930535935,5.04315245,109360.0,109350.0,0.00014492]
[1761930536151,5.04015245,109360.0,109350.0,0.00014492]
[1761930536334,5.04115245,109360.0,109350.0,0.00014492]
[1761930536583,5.11117711,109360.0,109350.0,0.00014492]
[1761930536796,5.29405933,109360.0,109350.0,0.00014492]
[1761930537014,2.8596221,109350.0,109320.0,0.21361341]
[1761930537244,0.08687303,109330.0,109320.0,0.21361341]
[1761930537467,0.08687303,109330.0,109320.0,0.32748341]
[1761930537889,0.08687303,109330.0,109320.0,0.25772341]
[1761930538111,0.08687303,109330.0,109320.0,0.25972341]
[1761930538562,0.08687303,109330.0,109320.0,0.07477464]
[1761930538776,0.08687303,109330.0,109320.0,0.25772378]
[1761930538991,0.08701776,109350.0,109320.0,0.33348378]
[1761930539235,0.01434809,109340.0,109320.0,0.33348378]
[1761930539711,0.01434809,109340.0,109320.0,0.14138719]
[1761930539935,0.09147039,109330.0,109320.0,0.07162719]
[1761930540382,0.09147039,109330.0,109320.0,0.02151719]
[1761930540600,0.01434809,109340.0,109320.0,0.13638719]
[1761930540820,0.01434809,109340.0,109320.0,0.06862719]
[1761930541014,0.01434809,109340.0,109320.0,0.32133528]
[1761930541257,0.09147039,109330.0,109320.0,0.24857528]
[1761930541469,0.09147039,109330.0,109320.0,0.31833633]
[1761930541693,0.09147039,109330.0,109320.0,0.14038719]
[1761930541967,0.09147039,109330.0,109320.0,0.13938719]
[1761930542229,0.09147039,109330.0,109320.0,0.13538719]
[1761930542456,0.09147039,109330.0,109320.0,0.06762719]
[1761930542674,0.09169379,109330.0,109320.0,0.25057633]
[1761930542911,0.09169379,109330.0,109320.0,0.06762719]
[1761930543551,0.09169379,109330.0,109320.0,0.06562719]
[1761930543769,0.09169379,109330.0,109320.0,0.07062719]
[1761930544440,3.09169379,109330.0,109320.0,0.02651719]
[1761930544678,0.09147039,109310.0,109290.0,0.03472]
[1761930544905,0.09147039,109310.0,109270.0,0.29666376]
[1761930544906,3.0,109300.0,109270.0,0.29666376]
[1761930545374,3.0,109300.0,109290.0,0.0788]
[1761930545607,0.09147039,109310.0,109290.0,0.0788]
[1761930545608,0.09647832,109330.0,109290.0,0.27094931]
[1761930545827,3.0,109320.0,109300.0,0.04411]
[1761930546054,0.09747832,109330.0,109290.0,0.21768909]
[1761930546055,0.09147039,109310.0,109290.0,0.21768909]
[1761930546276,0.09147039,109310.0,109290.0,0.28744909]
[1761930546496,0.10358582,109310.0,109290.0,0.28744659]
[1761930546729,0.10358582,109310.0,109290.0,0.28844659]